bitfinex/quotes_BTCUSD_20250115
["timestamp","ask_amount","ask_price","bid_price","bid_amount"]
[1736901574484,1.37651055,97097.0,97096.0,0.2413032]
[1736901574612,1.37951055,97097.0,97096.0,0.2413032]
[1736901575257,0.87694765,97097.0,97096.0,0.2413032]
[1736901575460,0.75750365,97097.0,97096.0,0.2413032]
[1736901575663,0.76650365,97097.0,97096.0,0.20387321]
[1736901576236,0.76350365,97097.0,97096.0,0.09322321]
[1736901576430,0.76350365,97097.0,97096.0,0.02671208]
[1736901576431,0.86173057,97097.0,97096.0,0.02671208]
[1736901576767,0.87073057,97097.0,97096.0,0.02671208]
[1736901576993,0.86173057,97097.0,97096.0,0.02671208]
[1736901577635,0.85873057,97097.0,97096.0,0.02671208]
[1736901578043,0.86173057,97097.0,97096.0,0.02671208]
[1736901578256,0.73256065,97097.0,97096.0,0.02671208]
[1736901578542,0.62741765,97097.0,97096.0,0.02671208]
[1736901578768,0.63349765,97097.0,97096.0,0.02671208]
[1736901579111,0.64549765,97097.0,97096.0,0.02671208]
[1736901579260,0.63349765,97097.0,97096.0,0.02671208]
[1736901579428,0.74672457,97097.0,97096.0,0.02671208]
[1736901579623,0.74972457,97097.0,97096.0,0.02671208]
[1736901579846,0.9253671,97097.0,97096.0,0.02671208]
[1736901580091,0.9343671,97097.0,97096.0,0.02671208]
[1736901580663,0.74972457,97097.0,97096.0,0.02671208]
[1736901581149,0.74672457,97097.0,97096.0,0.02671208]
[1736901581488,0.74872457,97097.0,97096.0,0.02671208]
[1736901581868,0.48342557,97097.0,97096.0,0.02671208]
[1736901582070,1.21387357,97097.0,97096.0,0.02671208]
[1736901583131,1.3985161,97097.0,97096.0,0.02671208]
[1736901583873,0.379022,97077.0,97076.0,0.00090253]
[1736901584049,0.52115112,97077.0,97076.0,0.37635319]
[1736901585271,0.52515112,97077.0,97076.0,0.37635319]
[1736901585567,0.52515112,97077.0,97076.0,0.37835319]
[1736901586341,0.52515112,97077.0,97076.0,0.31193253]
[1736901586554,0.52115112,97077.0,97076.0,0.31193253]
[1736901586740,0.52815112,97077.0,97076.0,0.31193253]
[1736901587144,0.62049285,97077.0,97076.0,0.31193253]
[1736901587422,0.63079219,97077.0,97076.0,0.30993253]
[1736901587940,0.62379219,97077.0,97076.0,0.30993253]
[1736901588419,0.54045046,97077.0,97076.0,0.30993253]
[1736901588609,0.53245046,97077.0,97076.0,0.30993253]
[1736901588955,0.54145046,97077.0,97076.0,0.30993253]
[1736901589157,0.54045046,97077.0,97076.0,0.30993253]
[1736901589596,1.30538046,97077.0,97076.0,0.30993253]
[1736901589915,1.29638046,97077.0,97076.0,0.30993253]
[1736901590875,1.22268046,97077.0,97076.0,0.30993253]
[1736901591215,1.22468046,97077.0,97076.0,0.30993253]
[1736901591425,1.23368046,97077.0,97076.0,0.30993253]
[1736901591608,1.22268046,97077.0,97076.0,0.30993253]
[1736901591781,1.22368046,97077.0,97076.0,0.30993253]
[1736901591981,1.23268046,97077.0,97076.0,0.30993253]
[1736901592187,1.45443864,97077.0,97076.0,0.30993253]
[1736901592408,1.46243864,97077.0,97076.0,0.30993253]
[1736901592783,1.45343864,97077.0,97076.0,0.30993253]
[1736901593127,1.46243864,97077.0,97076.0,0.30993253]
[1736901593860,1.23168046,97077.0,97076.0,0.30993253]
[1736901594238,1.06609846,97077.0,97076.0,0.30993253]
[1736901594465,1.06809846,97077.0,97076.0,0.30993253]
[1736901594854,1.06609846,97077.0,97076.0,0.30993253]
[1736901595290,1.06809846,97077.0,97076.0,0.30993253]
[1736901595638,1.05909846,97077.0,97076.0,0.30993253]
[1736901595842,1.06609846,97077.0,97076.0,0.30993253]
[1736901596109,1.07325761,97077.0,97076.0,0.24330125]
[1736901596244,1.08425761,97077.0,97076.0,0.24330125]
[1736901597214,1.06809846,97077.0,97076.0,0.24330125]
[1736901597462,1.06609846,97077.0,97076.0,0.24330125]
[1736901597662,1.28978808,97077.0,97076.0,0.24330125]
[1736901597868,0.93606388,97077.0,97076.0,0.24330125]
[1736901598289,0.92506388,97077.0,97076.0,0.24330125]
[1736901598499,0.71323788,97077.0,97076.0,0.24330125]
[1736901598736,0.12652626,97077.0,97076.0,0.30972191]
[1736901598938,0.11452626,97077.0,97076.0,0.30972191]
[1736901599139,0.01929934,97077.0,97076.0,0.30972191]
[1736901599358,0.01229934,97077.0,97076.0,0.32017191]
[1736901599557,0.002,97077.0,97076.0,0.32017191]
[1736901600584,0.002,97077.0,97076.0,0.39607191]
[1736901600789,0.006,97086.0,97078.0,0.06642066]
[1736901600790,0.21625628,97079.0,97078.0,0.06642066]
[1736901600987,0.21625628,97079.0,97078.0,0.06787066]
[1736901600988,0.206019,97079.0,97078.0,0.06787066]
[1736901601215,0.412038,97079.0,97078.0,0.44263066]
[1736901601417,0.356007,97084.0,97083.0,0.05742066]
[1736901601799,0.356007,97084.0,97083.0,0.43216066]
[1736901602210,0.356007,97084.0,97083.0,0.43561066]
[1736901602413,0.362007,97084.0,97083.0,0.43561066]
[1736901602640,0.363007,97084.0,97083.0,0.43561066]
[1736901603194,0.001,97084.0,97083.0,0.43561066]
[1736901603404,0.001,97084.0,97083.0,0.51291066]
[1736901603985,0.005,97084.0,97083.0,0.51291066]
[1736901604201,0.01627257,97086.0,97083.0,0.51291066]
[1736901604343,0.01627257,97086.0,97085.0,0.01045]
[1736901604541,0.01627257,97086.0,97085.0,0.43561066]
[1736901604542,0.01027257,97086.0,97085.0,0.43561066]
[1736901604739,0.32990982,97086.0,97085.0,0.43561066]
[1736901605619,0.35290982,97086.0,97085.0,0.37474]
[1736901606025,0.36906695,97086.0,97085.0,0.37368796]
[1736901606173,1.57941295,97086.0,97085.0,0.37368796]
[1736901606525,1.5999578,97086.0,97085.0,0.37368796]
[1736901607393,1.0335879,97086.0,97085.0,0.37368796]
[1736901607542,0.95289305,97086.0,97085.0,0.37368796]
[1736901607747,0.95389305,97086.0,97085.0,0.37368796]
[1736901607977,0.94247205,97086.0,97085.0,0.37368796]
[1736901608136,0.94147205,97086.0,97085.0,0.37368796]
[1736901608335,0.98696518,97086.0,97085.0,0.37368796]
[1736901608565,0.98196518,97086.0,97085.0,0.37368796]
[1736901609007,0.98896518,97086.0,97085.0,0.37468796]
[1736901609212,0.97896518,97086.0,97085.0,0.37368796]
[1736901609570,0.98596518,97086.0,97085.0,0.37468796]
[1736901610592,0.98896518,97086.0,97085.0,0.37468796]
[1736901612240,0.98596518,97086.0,97085.0,0.37468796]
[1736901612467,0.97896518,97086.0,97085.0,0.37368796]
[1736901612765,0.98796518,97086.0,97085.0,0.37368796]
[1736901612921,0.97896518,97086.0,97085.0,0.37368796]
[1736901613297,0.96280805,97086.0,97085.0,0.37368796]
[1736901613472,0.97180805,97086.0,97085.0,0.37368796]
[1736901613693,0.97480805,97086.0,97085.0,0.37368796]
[1736901614117,0.97180805,97086.0,97085.0,0.37368796]
[1736901614293,0.97180805,97086.0,97085.0,0.18287797]
[1736901614467,0.97380805,97086.0,97085.0,0.18287797]
[1736901615816,1.25172773,97086.0,97085.0,0.18287797]
[1736901616386,0.63017304,97086.0,97085.0,0.18287797]
[1736901616588,0.41530491,97086.0,97085.0,0.23329863]
[1736901616934,0.13738523,97086.0,97085.0,0.23329863]
[1736901617138,1.08375423,97086.0,97085.0,0.18287797]
[1736901617340,1.28220915,97086.0,97085.0,0.16775244]
[1736901617734,1.28420915,97086.0,97085.0,0.16775244]
[1736901618259,1.27320915,97086.0,97085.0,0.16775244]
[1736901618432,1.27620915,97086.0,97085.0,0.16775244]
[1736901618649,1.27820915,97086.0,97085.0,0.16775244]
[1736901618848,1.27520915,97086.0,97085.0,0.16775244]
[1736901619060,1.26805084,97086.0,97085.0,0.16875244]
[1736901619258,1.25905084,97086.0,97085.0,0.16775244]
[1736901619657,1.26805084,97086.0,97085.0,0.16875244]
[1736901619898,0.173,97085.0,97062.0,0.06087066]
[1736901620138,0.173,97085.0,97050.0,0.05127426]
[1736901620139,0.15,97052.0,97050.0,0.05127426]
[1736901620347,0.206073,97053.0,97050.0,0.00030298]
[1736901620348,0.11022692,97051.0,97050.0,0.00030298]
[1736901620550,0.11022692,97051.0,97050.0,0.30942298]
[1736901620750,0.54870511,97051.0,97050.0,0.30942298]
[1736901621099,0.75478211,97051.0,97050.0,0.30942298]
[1736901621894,0.76178211,97051.0,97050.0,0.30942298]
[1736901622625,0.93478211,97051.0,97050.0,0.30942298]
[1736901623128,0.93578211,97051.0,97050.0,0.30942298]
[1736901623332,0.86406592,97051.0,97050.0,0.30942298]
[1736901623566,0.48343448,97051.0,97050.0,0.30942298]
[1736901623765,0.48543448,97051.0,97050.0,0.30942298]
[1736901623997,0.74257448,97051.0,97050.0,0.30942298]
[1736901624360,0.73557448,97051.0,97050.0,0.30942298]
[1736901624583,0.8468014,97051.0,97050.0,0.30942298]
[1736901624939,0.8388014,97051.0,97050.0,0.30942298]
[1736901625384,0.8468014,97051.0,97050.0,0.30942298]
[1736901625760,0.8388014,97051.0,97050.0,0.30942298]
[1736901625959,0.8468014,97051.0,97050.0,0.30942298]
[1736901626166,0.8458014,97051.0,97050.0,0.30942298]
[1736901626754,0.8478014,97051.0,97050.0,0.30942298]
[1736901626967,0.48643448,97051.0,97050.0,0.30942298]
[1736901627162,0.48443448,97051.0,97050.0,0.30942298]
[1736901627623,0.48643448,97051.0,97050.0,0.30942298]
[1736901628041,0.49259757,97051.0,97050.0,0.30942298]
[1736901628215,0.50059757,97051.0,97050.0,0.30942298]
[1736901628935,0.5847733,97051.0,97050.0,0.30942298]
[1736901629146,0.49259757,97051.0,97050.0,0.30942298]
[1736901629345,0.49359757,97051.0,97050.0,0.30942298]
[1736901629549,0.85461957,97051.0,97050.0,0.30942298]
[1736901629757,0.84761957,97051.0,97050.0,0.30942298]
[1736901630001,0.84661957,97051.0,97050.0,0.30942298]
[1736901630176,0.72199449,97051.0,97050.0,0.30942298]
[1736901630321,0.62082449,97051.0,97050.0,0.30942298]
[1736901630525,0.73207549,97051.0,97050.0,0.30942298]
[1736901630723,0.73107549,97051.0,97050.0,0.30942298]
[1736901630962,0.73307549,97051.0,97050.0,0.30942298]
[1736901631733,0.73907549,97051.0,97050.0,0.30942298]
[1736901632435,0.73307549,97051.0,97050.0,0.30942298]
[1736901632567,0.73107549,97051.0,97050.0,0.30942298]
[1736901632779,0.74007549,97051.0,97050.0,0.30942298]
[1736901632989,0.73207549,97051.0,97050.0,0.30942298]
[1736901633873,0.73107549,97051.0,97050.0,0.30942298]
[1736901634077,0.73207549,97051.0,97050.0,0.30942298]
[1736901634619,0.74007549,97051.0,97050.0,0.30942298]
[1736901635158,0.73207549,97051.0,97050.0,0.30942298]
[1736901635359,0.75238864,97051.0,97050.0,0.30942298]
[1736901635600,0.75938864,97051.0,97050.0,0.30942298]
[1736901636113,0.75238864,97051.0,97050.0,0.30942298]
[1736901636354,0.75938864,97051.0,97050.0,0.30942298]
[1736901636553,0.74322555,97051.0,97050.0,0.30942298]
[1736901636744,0.74422555,97051.0,97050.0,0.30942298]
[1736901637885,0.61968548,97051.0,97050.0,0.30942298]
[1736901638086,0.61168548,97051.0,97050.0,0.30942298]
[1736901638253,0.61968548,97051.0,97050.0,0.30942298]
[1736901639660,0.61968548,97051.0,97050.0,0.26292774]
[1736901640002,0.61868548,97051.0,97050.0,0.26292774]
[1736901640131,0.8064124,97051.0,97050.0,0.26292774]
[1736901641175,0.6951614,97051.0,97050.0,0.26292774]
[1736901641315,0.6871614,97051.0,97050.0,0.26292774]
[1736901641521,1.5264724,97051.0,97050.0,0.20203774]
[1736901641726,1.5334724,97051.0,97050.0,0.20203774]
[1736901641970,1.5244724,97051.0,97050.0,0.20203774]
[1736901642229,1.5354724,97051.0,97050.0,0.20203774]
[1736901642651,1.5334724,97051.0,97050.0,0.20203774]
[1736901643028,1.5274724,97051.0,97050.0,0.19448848]
[1736901643900,1.5274724,97051.0,97050.0,0.18445523]
[1736901644123,1.5274724,97051.0,97035.0,0.0008537]
[1736901644247,1.5274724,97051.0,97035.0,0.00090312]
[1736901644248,0.00121592,97038.0,97035.0,0.00090312]
[1736901644451,0.229109,97036.0,97035.0,0.00090312]
[1736901644652,0.33333592,97036.0,97035.0,0.31006312]
[1736901645147,0.33333592,97036.0,97035.0,0.32051312]
[1736901645514,0.34365539,97036.0,97035.0,0.32051312]
[1736901645727,0.34865539,97036.0,97035.0,0.32051312]
[1736901646301,0.12054639,97036.0,97035.0,0.37093378]
[1736901646493,0.12554639,97036.0,97035.0,0.37093378]
[1736901647595,0.14171111,97036.0,97035.0,0.37093378]
[1736901647769,0.13671111,97036.0,97035.0,0.37093378]
[1736901647976,0.14071111,97036.0,97035.0,0.37093378]
[1736901648353,0.13671111,97036.0,97035.0,0.37093378]
[1736901650364,0.02648419,97036.0,97035.0,0.49563378]
[1736901650564,0.01031947,97036.0,97035.0,0.49563378]
[1736901650761,0.006,97037.0,97035.0,0.49563378]
[1736901650968,0.006,97040.0,97039.0,0.01045]
[1736901651188,0.006,97040.0,97039.0,0.3196]
[1736901652523,0.007,97040.0,97039.0,0.3196]
[1736901653912,0.006,97040.0,97039.0,0.3196]
[1736901654214,0.007,97040.0,97039.0,0.3196]
[1736901654644,0.006,97040.0,97039.0,0.3196]
[1736901655471,0.17720174,97040.0,97039.0,0.30915]
[1736901655653,0.35020174,97040.0,97039.0,0.30288041]
[1736901655852,0.85633574,97040.0,97039.0,0.28943503]
[1736901656055,0.87699006,97040.0,97039.0,0.28883503]
[1736901656257,0.87699006,97040.0,97039.0,0.28283503]
[1736901657309,0.80752696,97040.0,97039.0,0.28283503]
[1736901657456,0.77888496,97040.0,97039.0,0.28283503]
[1736901657808,0.62021996,97040.0,97039.0,0.28283503]
[1736901658180,0.59437296,97040.0,97039.0,0.28283503]
[1736901658385,0.60337296,97040.0,97039.0,0.28283503]
[1736901658750,0.52827396,97040.0,97039.0,0.28283503]
[1736901658963,0.28239296,97040.0,97039.0,0.28283503]
[1736901659164,0.28518637,97040.0,97039.0,0.28283503]
[1736901659368,0.38377921,97040.0,97039.0,0.28283503]
[1736901661642,0.26902033,97040.0,97039.0,0.28283503]
[1736901663257,0.80866133,97040.0,97039.0,0.28283503]
[1736901663455,0.83588833,97040.0,97039.0,0.12121513]
[1736901663912,0.83588833,97040.0,97021.0,0.0004]
[1736901663913,0.173,97039.0,97021.0,0.0004]
[1736901664126,0.20802692,97022.0,97021.0,0.00049174]
[1736901664340,0.023,97007.0,97006.0,0.01334283]
[1736901664528,0.13314372,97007.0,96987.0,0.0008536]
[1736901664729,0.206206,96990.0,96987.0,0.0008536]
[1736901664931,0.206211,96988.0,96987.0,0.3101736]
[1736901665133,0.206211,96988.0,96987.0,0.36059426]
[1736901665134,0.31043792,96988.0,96987.0,0.36059426]
[1736901665333,0.31043792,96988.0,96987.0,0.37104426]
[1736901665508,0.206199,96994.0,96987.0,0.37104426]
[1736901665708,0.206199,96994.0,96993.0,0.06087066]
[1736901665970,0.206199,96994.0,96993.0,0.37017066]
[1736901666137,0.20669053,96994.0,96993.0,0.37017066]
[1736901666480,0.55127992,96994.0,96993.0,0.31369082]
[1736901666685,0.49413392,96994.0,96993.0,0.31369082]
[1736901666814,0.51988519,96994.0,96993.0,0.31369082]
[1736901667336,0.49778019,96994.0,96993.0,0.29598683]
[1736901667951,0.39620719,96994.0,96993.0,0.29598683]
[1736901668326,0.58151292,96994.0,96993.0,0.29598683]
[1736901668538,0.58151292,96994.0,96993.0,0.30643683]
[1736901668539,0.45113145,96994.0,96993.0,0.30643683]
[1736901668920,0.45613145,96994.0,96993.0,0.30643683]
[1736901669127,0.46622654,96994.0,96993.0,0.30643683]
[1736901669329,0.46722654,96994.0,96993.0,0.29598683]
[1736901669539,0.57145346,96994.0,96993.0,0.30643683]
[1736901669732,0.46222654,96994.0,96993.0,0.29598683]
[1736901669910,0.61222654,96994.0,96993.0,0.29598683]
[1736901670584,0.61222654,96994.0,96993.0,0.35685749]
[1736901670585,0.01758662,96994.0,96993.0,0.35685749]
[1736901670783,0.01658662,96994.0,96993.0,0.35685749]
[1736901670992,0.01758662,96994.0,96993.0,0.35685749]
[1736901671405,0.02358662,96994.0,96993.0,0.35685749]
[1736901671645,0.01658662,96994.0,96993.0,0.35685749]
[1736901671813,0.01958662,96994.0,96993.0,0.35685749]
[1736901672184,0.01658662,96994.0,96993.0,0.35685749]
[1736901672413,0.18995534,96994.0,96993.0,0.30729073]
[1736901672620,0.18995534,96994.0,96993.0,0.35771139]
[1736901672815,0.12081354,96994.0,96993.0,0.35771139]
[1736901673075,0.12281354,96994.0,96993.0,0.35771139]
[1736901674498,0.12081354,96994.0,96993.0,0.35771139]
[1736901674878,0.12181354,96994.0,96993.0,0.35771139]
[1736901675076,0.12081354,96994.0,96993.0,0.35771139]
[1736901675480,0.12481354,96994.0,96993.0,0.35771139]
[1736901675680,0.12081354,96994.0,96993.0,0.35771139]
[1736901675845,0.12052188,96994.0,96993.0,0.35771139]
[1736901676295,0.13669359,96994.0,96993.0,0.35771139]
[1736901677633,0.13669359,96994.0,96993.0,0.30729073]
[1736901677770,0.22971335,96994.0,96993.0,0.30729073]
[1736901677983,0.13669359,96994.0,96993.0,0.35771139]
[1736901678556,0.13673359,96994.0,96993.0,0.35771139]
[1736901678941,0.13673359,96994.0,96993.0,0.30729073]
[1736901679477,0.13773359,96994.0,96993.0,0.30729073]
[1736901680010,0.28773359,96994.0,96993.0,0.30729073]
[1736901680157,0.39051686,96994.0,96993.0,0.30729073]
[1736901680930,0.38951686,96994.0,96993.0,0.30729073]
[1736901681130,0.28673359,96994.0,96993.0,0.30729073]
[1736901681331,0.29073359,96994.0,96993.0,0.30729073]
[1736901681558,0.28673359,96994.0,96993.0,0.30729073]
[1736901681762,0.27056188,96994.0,96993.0,0.30729073]
[1736901681969,0.16733496,96994.0,96993.0,0.30729073]
[1736901682186,0.35464835,96994.0,96993.0,0.30729073]
[1736901682663,0.63165935,96994.0,96993.0,0.29684073]
[1736901682841,0.55014135,96994.0,96993.0,0.30729073]
[1736901683122,0.50434235,96994.0,96993.0,0.30729073]
[1736901683337,0.46132735,96994.0,96993.0,0.30729073]
[1736901684115,0.46212138,96994.0,96993.0,0.30729073]
[1736901684498,0.46712138,96994.0,96993.0,0.30729073]
[1736901685128,0.38403491,96994.0,96993.0,0.29684073]
[1736901686919,0.5689317,96994.0,96993.0,0.29684073]
[1736901687117,0.5639317,96994.0,96993.0,0.29684073]
[1736901687432,0.5699317,96994.0,96993.0,0.29684073]
[1736901687867,0.37903491,96994.0,96993.0,0.29684073]
[1736901688033,0.27231591,96994.0,96993.0,0.29684073]
[1736901688231,0.27935591,96994.0,96993.0,0.29684073]
[1736901688693,0.41781792,96994.0,96993.0,0.30729073]
[1736901689030,0.41681792,96994.0,96993.0,0.30729073]
[1736901689531,0.27835591,96994.0,96993.0,0.30729073]
[1736901689692,0.27935591,96994.0,96993.0,0.30729073]
[1736901689896,0.29552798,96994.0,96993.0,0.30729073]
[1736901692694,0.38250169,96994.0,96993.0,0.29684073]
[1736901693094,0.36632962,96994.0,96993.0,0.30729073]
[1736901693666,0.36632962,96994.0,96993.0,0.29684073]
[1736901694175,1.73625862,96994.0,96993.0,0.29684073]
[1736901694388,1.20936062,96994.0,96993.0,0.29684073]
[1736901694543,1.23236062,96994.0,96993.0,0.29684073]
[1736901695543,0.206211,96988.0,96985.0,0.01045]
[1736901695742,0.15,96986.0,96985.0,0.01045]
[1736901695950,0.73796192,96986.0,96985.0,0.31977]
[1736901696332,0.61159692,96986.0,96985.0,0.31977]
[1736901696757,0.81781192,96986.0,96985.0,0.31977]
[1736901697160,0.72797492,96986.0,96985.0,0.31977]
[1736901697360,0.46044192,96986.0,96985.0,0.37019066]
[1736901697585,0.46648192,96986.0,96985.0,0.37019066]
[1736901698398,0.356215,96986.0,96985.0,0.37019066]
[1736901698635,0.368255,96986.0,96985.0,0.37019066]
[1736901698755,0.362255,96986.0,96985.0,0.37019066]
[1736901698962,0.46648192,96986.0,96985.0,0.31977]
[1736901699311,0.5351809,96986.0,96985.0,0.31977]
[1736901699543,0.5291409,96986.0,96985.0,0.31977]
[1736901699736,0.5351809,96986.0,96985.0,0.31977]
[1736901700136,0.5411809,96986.0,96985.0,0.31977]
[1736901700458,0.5341809,96986.0,96985.0,0.31977]
[1736901700731,0.5411809,96986.0,96985.0,0.31977]
[1736901701118,0.5351809,96986.0,96985.0,0.31977]
[1736901701317,0.5401809,96986.0,96985.0,0.31977]
[1736901701698,0.5351809,96986.0,96985.0,0.31977]
[1736901701907,0.5411809,96986.0,96985.0,0.31977]
[1736901702119,0.5401809,96986.0,96985.0,0.31977]
[1736901702869,0.6787204,96986.0,96985.0,0.31977]
[1736901703068,0.6787204,96986.0,96985.0,0.30932]
[1736901703300,0.6787204,96986.0,96985.0,0.31977]
[1736901703637,0.6797204,96986.0,96985.0,0.31977]
[1736901703844,0.5351809,96986.0,96985.0,0.31977]
[1736901704061,0.5341809,96986.0,96985.0,0.31977]
[1736901704259,0.5401809,96986.0,96985.0,0.31977]
[1736901704463,0.5351809,96986.0,96985.0,0.31977]
[1736901704982,0.5411809,96986.0,96985.0,0.31977]
[1736901705187,0.5341809,96986.0,96985.0,0.31977]
[1736901705344,0.5351809,96986.0,96985.0,0.31977]
[1736901705851,0.46748192,96986.0,96985.0,0.31977]
[1736901706705,0.47348192,96986.0,96985.0,0.31977]
[1736901706919,0.46748192,96986.0,96985.0,0.31977]
[1736901707257,0.47248192,96986.0,96985.0,0.31977]
[1736901707481,0.46648192,96986.0,96985.0,0.31977]
[1736901707655,0.57170884,96986.0,96985.0,0.31977]
[1736901707863,0.57770884,96986.0,96985.0,0.31977]
[1736901708069,0.57070884,96986.0,96985.0,0.31977]
[1736901708304,0.84805403,96986.0,96985.0,0.31977]
[1736901708503,0.85505403,96986.0,96985.0,0.3206243]
[1736901708867,0.85405403,96986.0,96985.0,0.3206243]
[1736901709094,0.57670884,96986.0,96985.0,0.3206243]
[1736901709246,0.57770884,96986.0,96985.0,0.3206243]
[1736901709968,0.57170884,96986.0,96985.0,0.3206243]
[1736901710377,0.57870884,96986.0,96985.0,0.3206243]
[1736901710711,0.57170884,96986.0,96985.0,0.3206243]
[1736901710875,0.57770884,96986.0,96985.0,0.3206243]
[1736901711076,0.47448192,96986.0,96985.0,0.3206243]
[1736901711277,0.46748192,96986.0,96985.0,0.3206243]
[1736901711483,0.47448192,96986.0,96985.0,0.3206243]
[1736901711683,0.47348192,96986.0,96985.0,0.3206243]
[1736901711893,0.47448192,96986.0,96985.0,0.3206243]
[1736901712081,0.56682166,96986.0,96985.0,0.3206243]
[1736901712493,0.85635866,96986.0,96985.0,0.3206243]
[1736901712676,0.83867166,96986.0,96985.0,0.3206243]
[1736901713009,0.82213166,96986.0,96985.0,0.3206243]
[1736901713451,0.79892666,96986.0,96985.0,0.3206243]
[1736901714318,0.79192666,96986.0,96985.0,0.3206243]
[1736901714529,0.79092666,96986.0,96985.0,0.3206243]
[1736901714731,0.79792666,96986.0,96985.0,0.3206243]
[1736901714955,0.79092666,96986.0,96985.0,0.3206243]
[1736901715281,0.79692666,96986.0,96985.0,0.3206243]
[1736901715454,0.74436266,96986.0,96985.0,0.3206243]
[1736901715658,0.73936266,96986.0,96985.0,0.3206243]
[1736901715863,0.74636266,96986.0,96985.0,0.3206243]
[1736901716261,0.73836266,96986.0,96985.0,0.3206243]
[1736901716461,0.73836266,96986.0,96985.0,0.3202243]
[1736901716664,0.73936266,96986.0,96985.0,0.3202243]
[1736901717011,0.64702292,96986.0,96985.0,0.3202243]
[1736901717416,0.64698292,96986.0,96985.0,0.3202243]
[1736901717620,0.96728775,96986.0,96985.0,0.3202243]
[1736901717791,0.96628775,96986.0,96985.0,0.3202243]
[1736901717994,0.95928775,96986.0,96985.0,0.3202243]
[1736901718253,0.96728775,96986.0,96985.0,0.3202243]
[1736901718427,0.78774675,96986.0,96985.0,0.3202243]
[1736901718644,1.14726597,96986.0,96985.0,0.3202243]
[1736901718783,0.84096114,96986.0,96985.0,0.3202243]
[1736901718977,0.84196114,96986.0,96985.0,0.3202243]
[1736901719190,0.83496114,96986.0,96985.0,0.3202243]
[1736901719570,0.84096114,96986.0,96985.0,0.3202243]
[1736901719758,0.84196114,96986.0,96985.0,0.3202243]
[1736901720452,0.75903614,96986.0,96985.0,0.3202243]
[1736901720675,0.68503992,96986.0,96985.0,0.3202243]
[1736901720872,0.47444192,96986.0,96985.0,0.3202243]
[1736901721284,0.63170192,96986.0,96985.0,0.3097743]
[1736901721432,0.62570192,96986.0,96985.0,0.3097743]
[1736901721631,0.72992884,96986.0,96985.0,0.3097743]
[1736901721836,0.63270192,96986.0,96985.0,0.3097743]
[1736901722072,0.46644192,96986.0,96985.0,0.3097743]
[1736901722273,0.78534492,96986.0,96985.0,0.3097743]
[1736901722482,0.79334492,96986.0,96985.0,0.3097743]
[1736901722799,0.78534492,96986.0,96985.0,0.3097743]
[1736901722935,0.88957184,96986.0,96985.0,0.3097743]
[1736901724063,0.89657184,96986.0,96985.0,0.3097743]
[1736901724548,0.88957184,96986.0,96985.0,0.3097743]
[1736901724656,0.89657184,96986.0,96985.0,0.3097743]
[1736901725103,0.89057184,96986.0,96985.0,0.3097743]
[1736901725411,0.89657184,96986.0,96985.0,0.3097743]
[1736901725624,0.88957184,96986.0,96985.0,0.3097743]
[1736901726035,0.89657184,96986.0,96985.0,0.3097743]
[1736901726378,0.89557184,96986.0,96985.0,0.3097743]
[1736901726780,0.47344192,96986.0,96985.0,0.3097743]
[1736901727229,0.46744192,96986.0,96985.0,0.3097743]
[1736901727442,0.47344192,96986.0,96985.0,0.3097743]
[1736901727841,0.46744192,96986.0,96985.0,0.3097743]
[1736901728015,0.47288192,96986.0,96985.0,0.3097743]
[1736901728219,1.0347954,96986.0,96985.0,0.3097743]
[1736901728430,1.0287954,96986.0,96985.0,0.3097743]
[1736901728841,1.0337954,96986.0,96985.0,0.3097743]
[1736901729038,1.0277954,96986.0,96985.0,0.3097743]
[1736901729818,1.0287954,96986.0,96985.0,0.3097743]
[1736901730531,0.9897594,96986.0,96985.0,0.3097743]
[1736901730729,0.60572792,96986.0,96985.0,0.3097743]
[1736901731315,0.60472792,96986.0,96985.0,0.3097743]
[1736901731715,0.47488192,96986.0,96985.0,0.3097743]
[1736901731915,0.60648916,96986.0,96985.0,0.3097743]
[1736901732081,0.60548916,96986.0,96985.0,0.3097743]
[1736901732303,0.47567616,96986.0,96985.0,0.36019496]
[1736901732960,0.47467616,96986.0,96985.0,0.36019496]
[1736901733162,0.51162504,96986.0,96985.0,0.3097743]
[1736901733383,0.51162504,96986.0,96985.0,0.36019496]
[1736901733578,0.50562504,96986.0,96985.0,0.36019496]
[1736901733909,0.47567616,96986.0,96985.0,0.36019496]
[1736901734235,0.46967616,96986.0,96985.0,0.36019496]
[1736901734933,0.46867616,96986.0,96985.0,0.36019496]
[1736901735127,0.47467616,96986.0,96985.0,0.36019496]
[1736901735339,0.47467616,96986.0,96985.0,0.37064496]
[1736901735340,0.35844924,96986.0,96985.0,0.37064496]
[1736901735542,0.00223424,96986.0,96985.0,0.46317946]
[1736901735773,0.00223424,96986.0,96985.0,0.41804496]
[1736901735982,0.20844924,96986.0,96985.0,0.41804496]
[1736901736193,0.20844924,96986.0,96985.0,0.3571743]
[1736901736406,0.35844924,96986.0,96985.0,0.41804496]
[1736901736875,0.36344924,96986.0,96985.0,0.41804496]
[1736901737080,0.35844924,96986.0,96985.0,0.41804496]
[1736901737458,0.36544924,96986.0,96985.0,0.41804496]
[1736901737772,0.35844924,96986.0,96985.0,0.41804496]
[1736901738111,0.36244924,96986.0,96985.0,0.41804496]
[1736901739916,0.35844924,96986.0,96985.0,0.41804496]
[1736901740259,0.35944924,96986.0,96985.0,0.41804496]
[1736901740656,0.35944924,96986.0,96985.0,0.37064496]
[1736901741372,0.55176715,96986.0,96985.0,0.36019496]
[1736901741576,0.55076715,96986.0,96985.0,0.36019496]
[1736901741773,0.55476715,96986.0,96985.0,0.3202243]
[1736901741979,0.55476715,96986.0,96985.0,0.3097743]
[1736901743190,0.55076715,96986.0,96985.0,0.3097743]
[1736901743577,0.55276715,96986.0,96985.0,0.3097743]
[1736901743800,0.85406215,96986.0,96985.0,0.30408054]
[1736901743959,0.76397116,96986.0,96985.0,0.30408054]
[1736901744162,0.77097116,96986.0,96985.0,0.30408054]
[1736901744372,0.66867616,96986.0,96985.0,0.3649512]
[1736901744583,0.66167616,96986.0,96985.0,0.3649512]
[1736901744784,0.36544924,96986.0,96985.0,0.3649512]
[1736901744988,0.22144924,96986.0,96985.0,0.3649512]
[1736901745191,0.00923424,96986.0,96985.0,0.3649512]
[1736901745423,0.01023424,96986.0,96985.0,0.3649512]
[1736901745649,0.01023424,96986.0,96985.0,0.5895512]
[1736901745776,0.00923424,96986.0,96985.0,0.5895512]
[1736901746225,0.00923424,96986.0,96985.0,0.4895512]
[1736901746431,0.00223424,96986.0,96985.0,0.5895512]
[1736901746829,0.00823424,96986.0,96985.0,0.4895512]
[1736901747024,0.00323424,96986.0,96985.0,0.4895512]
[1736901747438,0.00423424,96986.0,96985.0,0.4895512]
[1736901748130,0.00223424,96986.0,96985.0,0.36043054]
[1736901748337,0.00223424,96986.0,96985.0,0.4108512]
[1736901748540,0.00323424,96986.0,96985.0,0.4108512]
[1736901749179,0.15184916,96986.0,96985.0,0.36043054]
[1736901749583,0.15284916,96986.0,96985.0,0.4108512]
[1736901750094,0.15284916,96986.0,96985.0,0.36043054]
[1736901750298,0.15184916,96986.0,96985.0,0.4108512]